{"text_format":"1","workbook":"xlsx","n_sheets":2,"sheets":["Нужно 200 столбцов","Пример Работает"],"not_rendered":{"charts":0,"images":0,"macros":1,"external_links":0,"defined_names":0,"comments":0,"pivot_tables":0},"unopened":[],"bounds":{"document_bytes":16777216,"sheet_cells":100000,"rows_first":2000,"rows_last":500,"rows_between":2000,"halvings":0,"cell_chars":16384,"cell_head_chars":4096},"cells_cut":0,"cells_raw":0,"read":"whole","date_system":"1900"}

{"sheet":"Нужно 200 столбцов","index":0,"n_rows":12,"n_cols":202,"rows_kept":12,"cut":false,"hidden":false,"merged":[]}
["Материал1|","Материал2|","Материал3|","Материал4|","Материал5|","Материал6|","Материал7|","Материал8|","Материал9|","Материал10|","Материал11|","Материал12|","Материал13|","Материал14|","Материал15|","Материал16|","Материал17|","Материал18|","Материал19|","Материал20|","Материал21|","Материал22|","Материал23|","Материал24|","Материал25|","Материал26|","Материал27|","Материал28|","Материал29|","Материал30|","Материал31|","Материал32|","Материал33|","Материал34|","Материал35|","Материал36|","Материал37|","Материал38|","Материал39|","Материал40|","Материал41|","Материал42|","Материал43|","Материал44|","Материал45|","Материал46|","Материал47|","Материал48|","Материал49|","Материал50|","Материал51|","Материал52|","Материал53|","Материал54|","Материал55|","Материал56|","Материал57|","Материал58|","Материал59|","Материал60|","Материал61|","Материал62|","Материал63|","Материал64|","Материал65|","Материал66|","Материал67|","Материал68|","Материал69|","Материал70|","Материал71|","Материал72|","Материал73|","Материал74|","Материал75|","Материал76|","Материал77|","Материал78|","Материал79|","Материал80|","Материал81|","Материал82|","Материал83|","Материал84|","Материал85|","Материал86|","Материал87|","Материал88|","Материал89|","Материал90|","Материал91|","Материал92|","Материал93|","Материал94|","Материал95|","Материал96|","Материал97|","Материал98|","Материал99|","Материал100|","Материал101|","Материал102|","Материал103|","Материал104|","Материал105|","Материал106|","Материал107|","Материал108|","Материал109|","Материал110|","Материал111|","Материал112|","Материал113|","Материал114|","Материал115|","Материал116|","Материал117|","Материал118|","Материал119|","Материал120|","Материал121|","Материал122|","Материал123|","Материал124|","Материал125|","Материал126|","Материал127|","Материал128|","Материал129|","Материал130|","Материал131|","Материал132|","Материал133|","Материал134|","Материал135|","Материал136|","Материал137|","Материал138|","Материал139|","Материал140|","Материал141|","Материал142|","Материал143|","Материал144|","Материал145|","Материал146|","Материал147|","Материал148|","Материал149|","Материал150|","Материал151|","Материал152|","Материал153|","Материал154|","Материал155|","Материал156|","Материал157|","Материал158|","Материал159|","Материал160|","Материал161|","Материал162|","Материал163|","Материал164|","Материал165|","Материал166|","Материал167|","Материал168|","Материал169|","Материал170|","Материал171|","Материал172|","Материал173|","Материал174|","Материал175|","Материал176|","Материал177|","Материал178|","Материал179|","Материал180|","Материал181|","Материал182|","Материал183|","Материал184|","Материал185|","Материал186|","Материал187|","Материал188|","Материал189|","Материал190|","Материал191|","Материал192|","Материал193|","Материал194|","Материал195|","Материал196|","Материал197|","Материал198|","Материал199|","Материал200|",null,"Нужно в одну ячейку"]
["Cezares","Royal Palace","Италия","Royal Palace","\nДвухрежимная арматура 3/6 литров GEBERIT\nДюропластовое сидение, оснащенное механизмом плавного закрывания Microlift\nСмыв по всему периметру чаши унитаза\nБесшумное наполнение, нижний подвод воды к бачку","Описание\nДвухрежимная арматура 3/6 литров GEBERIT\nДюропластовое сидение, оснащенное механизмом плавного закрывания Microlift\nСмыв по всему периметру чаши унитаза\nБесшумное наполнение, нижний подвод воды к бачку",20960,"211446674_32.jpg","211446674_32-2.jpg","211446674_32-3.jpg","211446674_32-4.jpg","210152916_67-5.jpg","BB6400500000000","приставной (бачок в стене)","есть","нет","горизонтальный (в стену)","фарфор","да","дюропласт, дерево",36.5,55.5,40.5,42.5,"бытовая","в стену (скрытый)",42069,"снизу бачка","душевой слив (воронка-водоворот)","определяется механизмом системы инсталляции","определяется системой инсталляции","овальная","нет","ретро","белый","белый, под дерево","есть, уже установлено","нет, установка не предусмотрена","встроенное сиденье","15 лет","Италия","для ванн Petit","подлокотники","хром, кристалл","bianco perla frassinato","220-230","нет","напольный",56,"любое, по желанию","пристенная","стандартное",5.2,0.5,"установка по желанию","гидромассаж спины, гидромассаж боковой, гидромассаж ног",6,12,2,1,"есть, приобретаются отдельно","есть, приобретаются отдельно","нет, установка на каркас не предусмотрена","есть, приобретается отдельно","нет, приобретается отдельно",220,"нет","правая","установка по желанию","установка по желанию",null,"установка по желанию","установка по желанию",12,"ручки и ножки","нет","ванн Riho серий Delta, Carolina, Columbia, Alberta, Calgary, Columbia, Future, Genova, Daytona, Julia, Klassik, Lima, Livorno, Lusso, Miam, Modena, Montreal, Orion, Ottawa, Pegas, Seth, Supreme, Lyra, Taurus, Tofield, Virgo, Winnipeg, Parson, Castor, Pasadena, Cantara и ванн Vagnerplast серий Briana, Cavallo, Gaia, Charitka, Minerva, Kasandra, Kleopatra, Hera, Casablanca, Veronela, Nymfa, Penelope",14,103,"массив ореха","массив лиственных деревьев","округлая","белый","с ящиками","нет","искусственный мрамор","керамическая кран-букса","фарфор","полукруглая","белый",1,"нет","нет","белый",6,"раздвижная",2,"серый","акрил","прозрачное","хром","алюминий","стекло","низкий","белый","нет, приобретается отдельно","да","для биде","Cezares","Royal Palace","Италия","Royal Palace","\nДвухрежимная арматура 3/6 литров GEBERIT\nДюропластовое сидение, оснащенное механизмом плавного закрывания Microlift\nСмыв по всему периметру чаши унитаза\nБесшумное наполнение, нижний подвод воды к бачку","Описание\nДвухрежимная арматура 3/6 литров GEBERIT\nДюропластовое сидение, оснащенное механизмом плавного закрывания Microlift\nСмыв по всему периметру чаши унитаза\nБесшумное наполнение, нижний подвод воды к бачку",20960,"211446674_32.jpg","211446674_32-2.jpg","211446674_32-3.jpg","211446674_32-4.jpg","210152916_67-5.jpg","BB6400500000000","приставной (бачок в стене)","есть","нет","горизонтальный (в стену)","фарфор","да","дюропласт, дерево",36.5,55.5,40.5,42.5,"бытовая","в стену (скрытый)",42069,"снизу бачка","душевой слив (воронка-водоворот)","определяется механизмом системы инсталляции","определяется системой инсталляции","овальная","нет","ретро","белый","белый, под дерево","есть, уже установлено","нет, установка не предусмотрена","встроенное сиденье","15 лет","Италия","для ванн Petit","подлокотники","хром, кристалл","bianco perla frassinato","220-230","нет","напольный",56,"любое, по желанию","пристенная","стандартное",5.2,0.5,"установка по желанию","гидромассаж спины, гидромассаж боковой, гидромассаж ног",6,12,2,1,"есть, приобретаются отдельно","есть, приобретаются отдельно","нет, установка на каркас не предусмотрена","есть, приобретается отдельно","нет, приобретается отдельно",220,"нет","правая","установка по желанию","установка по желанию",null,"установка по желанию","установка по желанию",12,"ручки и ножки","нет","ванн Riho серий Delta, Carolina, Columbia, Alberta, Calgary, Columbia, Future, Genova, Daytona, Julia, Klassik, Lima, Livorno, Lusso, Miam, Modena, Montreal, Orion, Ottawa, Pegas, Seth, Supreme, Lyra, Taurus, Tofield, Virgo, Winnipeg, Parson, Castor, Pasadena, Cantara и ванн Vagnerplast серий Briana, Cavallo, Gaia, Charitka, Minerva, Kasandra, Kleopatra, Hera, Casablanca, Veronela, Nymfa, Penelope",14,103,"массив ореха","массив лиственных деревьев","округлая","белый","с ящиками","нет","искусственный мрамор","керамическая кран-букса","фарфор","полукруглая","белый",1,"нет"]
["Cezares","Laredo","Италия","Laredo","\nДвухрежимная арматура 3/6 литров GEBERIT\nДюропластовое сидение, оснащенное механизмом плавного\nзакрывания Microlift\nСмыв по всему периметру чаши унитаза\nБесшумное наполнение, нижний подвод воды к бачку","Описание\nДвухрежимная арматура 3/6 литров GEBERIT\nДюропластовое сидение, оснащенное механизмом плавного\nзакрывания Microlift\nСмыв по всему периметру чаши унитаза\nБесшумное наполнение, нижний подвод воды к бачку",36080,"210152916_67.jpg","210152916_67-2.jpg","210152916_67-3.jpg","210152916_67-4.jpg","210116438_545-4.jpg","BC3500500000000","напольный унитаз-компакт","есть","нет","горизонтальный (в стену)","фарфор","да","дюропласт, дерево",38,64,82,45,"бытовая","поверх унитаза",42069,"снизу бачка","душевой слив (воронка-водоворот)","две кнопки (режим эконом)","механическая кнопка","овальная","нет","ретро","белый","белый, под дерево","установка по желанию","нет, установка не предусмотрена","встроенное сиденье","15 лет","Италия","75 таблеток","подлокотники","хром, кристалл","bianco perla frassinato","220-230","нет","напольный",56,"любое, по желанию","пристенная","по центру",5.2,0.5,"установка по желанию","гидромассаж спины, гидромассаж боковой, гидромассаж ног",14,6,2,1,"есть, приобретаются отдельно","есть, приобретаются отдельно","нет, установка на каркас не предусмотрена","есть, приобретается отдельно","нет, приобретается отдельно",365,"нет","правая","установка по желанию","установка по желанию",null,"установка по желанию","установка по желанию",12,"системы гидромассажа","нет","ванн Riho Lima",14,90,"массив ореха","массив лиственных деревьев","округлая","белый","с ящиками","нет","искусственный мрамор","керамический картридж","фарфор","полукруглая","белый",1,"нет","нет","белый",8,"раздвижная",2,"серый","акрил","прозрачное","хром","алюминий","стекло","низкий","белый","нет, приобретается отдельно","да","для душа","Cezares","Laredo","Италия","Laredo","\nДвухрежимная арматура 3/6 литров GEBERIT\nДюропластовое сидение, оснащенное механизмом плавного\nзакрывания Microlift\nСмыв по всему периметру чаши унитаза\nБесшумное наполнение, нижний подвод воды к бачку","Описание\nДвухрежимная арматура 3/6 литров GEBERIT\nДюропластовое сидение, оснащенное механизмом плавного\nзакрывания Microlift\nСмыв по всему периметру чаши унитаза\nБесшумное наполнение, нижний подвод воды к бачку",36080,"210152916_67.jpg","210152916_67-2.jpg","210152916_67-3.jpg","210152916_67-4.jpg","210116438_545-4.jpg","BC3500500000000","напольный унитаз-компакт","есть","нет","горизонтальный (в стену)","фарфор","да","дюропласт, дерево",38,64,82,45,"бытовая","поверх унитаза",42069,"снизу бачка","душевой слив (воронка-водоворот)","две кнопки (режим эконом)","механическая кнопка","овальная","нет","ретро","белый","белый, под дерево","установка по желанию","нет, установка не предусмотрена","встроенное сиденье","15 лет","Италия","75 таблеток","подлокотники","хром, кристалл","bianco perla frassinato","220-230","нет","напольный",56,"любое, по желанию","пристенная","по центру",5.2,0.5,"установка по желанию","гидромассаж спины, гидромассаж боковой, гидромассаж ног",14,6,2,1,"есть, приобретаются отдельно","есть, приобретаются отдельно","нет, установка на каркас не предусмотрена","есть, приобретается отдельно","нет, приобретается отдельно",365,"нет","правая","установка по желанию","установка по желанию",null,"установка по желанию","установка по желанию",12,"системы гидромассажа","нет","ванн Riho Lima",14,90,"массив ореха","массив лиственных деревьев","округлая","белый","с ящиками","нет","искусственный мрамор","керамический картридж","фарфор","полукруглая","белый",1,"нет"]
["Cezares","Prati","Италия","Prati-A","\nЧешские ванны Riho известны своими практичностью и\nдолговечностью. В производстве использован сантехнический акрил\nбританской марки «Lucite». Среди прочих достоинств ванн Riho можно\nотметить антибактериальное покрытие «Microbian», а также не\nтускнеющий со временем цвет «Euro white».","Описание\nЧешские ванны Riho известны своими практичностью и\nдолговечностью. В производстве использован сантехнический акрил\nбританской марки «Lucite». Среди прочих достоинств ванн Riho можно\nотметить антибактериальное покрытие «Microbian», а также не\nтускнеющий со временем цвет «Euro white». Лаконичный дизайн модели\nMiami придется по вкусу любителям классики.",28430,"210156371_189.jpg","210156371_189-2.jpg","210156371_189-3.jpg","210156371_189-4.jpg","210172324_737-5.jpg","BC3400500000000","напольный унитаз-компакт","есть","нет","горизонтальный (в стену)","фарфор","да","дюропласт",36,67,83,40,"бытовая","поверх унитаза",42069,"снизу бачка","душевой слив (воронка-водоворот)","две кнопки (режим эконом)","механическая кнопка","прямоугольная","нет","hi-tech","белый","белый","есть, уже установлено","нет, установка не предусмотрена","встроенное сиденье","15 лет","Италия","объем 1 литр","подлокотники","бронза","noce","220-230","нет","напольный",51,"любое, по желанию","пристенная","по центру",5.2,0.5,"установка по желанию","гидромассаж спины, гидромассаж боковой, гидромассаж ног",14,6,2,1,"есть, приобретаются отдельно","есть, приобретаются отдельно","нет, установка на каркас не предусмотрена","есть, приобретается отдельно","нет, приобретается отдельно",290,"нет","левая","установка по желанию","установка по желанию",null,"установка по желанию","установка по желанию",12,"системы гидромассажа","нет","ванн Riho Delta",14,68.5,"массив ореха","массив лиственных деревьев","округлая","темное дерево","с дверками","нет","натуральный мрамор","керамический картридж","полимерная керамика","полукруглая","белый",3,"нет","нет",null,8,"раздвижная",2,"серый","акрил","рифленое","хром","алюминий","стекло","низкий","белый","нет, приобретается отдельно","да","для раковины","Cezares","Prati","Италия","Prati-A","\nЧешские ванны Riho известны своими практичностью и\nдолговечностью. В производстве использован сантехнический акрил\nбританской марки «Lucite». Среди прочих достоинств ванн Riho можно\nотметить антибактериальное покрытие «Microbian», а также не\nтускнеющий со временем цвет «Euro white».","Описание\nЧешские ванны Riho известны своими практичностью и\nдолговечностью. В производстве использован сантехнический акрил\nбританской марки «Lucite». Среди прочих достоинств ванн Riho можно\nотметить антибактериальное покрытие «Microbian», а также не\nтускнеющий со временем цвет «Euro white». Лаконичный дизайн модели\nMiami придется по вкусу любителям классики.",28430,"210156371_189.jpg","210156371_189-2.jpg","210156371_189-3.jpg","210156371_189-4.jpg","210172324_737-5.jpg","BC3400500000000","напольный унитаз-компакт","есть","нет","горизонтальный (в стену)","фарфор","да","дюропласт",36,67,83,40,"бытовая","поверх унитаза",42069,"снизу бачка","душевой слив (воронка-водоворот)","две кнопки (режим эконом)","механическая кнопка","прямоугольная","нет","hi-tech","белый","белый","есть, уже установлено","нет, установка не предусмотрена","встроенное сиденье","15 лет","Италия","объем 1 литр","подлокотники","бронза","noce","220-230","нет","напольный",51,"любое, по желанию","пристенная","по центру",5.2,0.5,"установка по желанию","гидромассаж спины, гидромассаж боковой, гидромассаж ног",14,6,2,1,"есть, приобретаются отдельно","есть, приобретаются отдельно","нет, установка на каркас не предусмотрена","есть, приобретается отдельно","нет, приобретается отдельно",290,"нет","левая","установка по желанию","установка по желанию",null,"установка по желанию","установка по желанию",12,"системы гидромассажа","нет","ванн Riho Delta",14,68.5,"массив ореха","массив лиственных деревьев","округлая","темное дерево","с дверками","нет","натуральный мрамор","керамический картридж","полимерная керамика","полукруглая","белый",3,"нет"]
["Cezares","King palace","Италия","King Palace","\nВанна RIHO NEO 150 изготовлена из 100 % акрилового листа LUCITE, с добавлением антибактериального свойства MICROBAN.","Описание\nВанна RIHO NEO 150 изготовлена из 100 % акрилового листа LUCITE, с добавлением антибактериального свойства MICROBAN.",36880,"210116438_545.jpg","210116438_545.jpg","210116438_545-2.jpg","210116438_545-3.jpg","35545671_967-5.jpg","BA6300500000000","напольный унитаз-компакт","есть","нет","горизонтальный (в стену)","фарфор","да","дюропласт",43.5,74.5,84.5,40,"бытовая","поверх унитаза",42069,"снизу бачка","душевой слив (воронка-водоворот)","две кнопки (режим эконом)","механическая кнопка","овальная","нет","ретро","белый","белый","установка по желанию","нет, установка не предусмотрена","встроенное сиденье","15 лет","Италия","для ванн  Lugano, Dimaro","подлокотники","хром","bianco frassinato","220-230","нет","напольный",61,"любое, по желанию","пристенная","по центру",5.2,0.5,"установка по желанию","гидромассаж спины, гидромассаж боковой, гидромассаж ног",14,6,2,1,"есть, приобретаются отдельно","есть, приобретаются отдельно","нет, установка на каркас не предусмотрена","есть, приобретается отдельно","нет, приобретается отдельно",280,"нет","правая","установка по желанию","установка по желанию",null,"установка по желанию","установка по желанию",12,"системы гидромассажа","нет","ванн Riho Lusso",14,110,"массив ореха","массив лиственных деревьев","округлая","белый","с дверками","нет","натуральный мрамор","керамический картридж","полимерная керамика","полукруглая","белый",1,"нет","нет",null,8,"раздвижная",2,"серый","акрил","рифленое","хром","алюминий","стекло","низкий","белый","нет, приобретается отдельно","да","для душа","Cezares","King palace","Италия","King Palace","\nВанна RIHO NEO 150 изготовлена из 100 % акрилового листа LUCITE, с добавлением антибактериального свойства MICROBAN.","Описание\nВанна RIHO NEO 150 изготовлена из 100 % акрилового листа LUCITE, с добавлением антибактериального свойства MICROBAN.",36880,"210116438_545.jpg","210116438_545.jpg","210116438_545-2.jpg","210116438_545-3.jpg","35545671_967-5.jpg","BA6300500000000","напольный унитаз-компакт","есть","нет","горизонтальный (в стену)","фарфор","да","дюропласт",43.5,74.5,84.5,40,"бытовая","поверх унитаза",42069,"снизу бачка","душевой слив (воронка-водоворот)","две кнопки (режим эконом)","механическая кнопка","овальная","нет","ретро","белый","белый","установка по желанию","нет, установка не предусмотрена","встроенное сиденье","15 лет","Италия","для ванн  Lugano, Dimaro","подлокотники","хром","bianco frassinato","220-230","нет","напольный",61,"любое, по желанию","пристенная","по центру",5.2,0.5,"установка по желанию","гидромассаж спины, гидромассаж боковой, гидромассаж ног",14,6,2,1,"есть, приобретаются отдельно","есть, приобретаются отдельно","нет, установка на каркас не предусмотрена","есть, приобретается отдельно","нет, приобретается отдельно",280,"нет","правая","установка по желанию","установка по желанию",null,"установка по желанию","установка по желанию",12,"системы гидромассажа","нет","ванн Riho Lusso",14,110,"массив ореха","массив лиственных деревьев","округлая","белый","с дверками","нет","натуральный мрамор","керамический картридж","полимерная керамика","полукруглая","белый",1,"нет"]
["Cezares","Royal Palace","Италия","Royal Palace","\nВанна RIHO NEO 140 изготовлена из 100 % акрилового листа LUCITE, с добавлением антибактериального свойства MICROBAN.","Описание\nВанна RIHO NEO 140 изготовлена из 100 % акрилового листа LUCITE, с добавлением антибактериального свойства MICROBAN.",31840,"210172324_737.jpg","210172324_737-2.jpg","210172324_737-3.jpg","210172324_737-4.jpg","35545668_968-5.jpg","BA6500500000000","напольный унитаз-компакт","есть","нет","вертикальный (в пол), горизонтальный (в стену)","фарфор","да","дюропласт, дерево",45.5,69,84.5,40,"бытовая","поверх унитаза",42069,"снизу бачка","душевой слив (воронка-водоворот)","две кнопки (режим эконом)","механическая кнопка","овальная","нет","ретро","белый","белый, под дерево","есть, уже установлено","нет, установка не предусмотрена","встроенное сиденье","15 лет","Италия","для ванн RIHO Dopio, Modena, Geta, Daytona","подлокотники","бронза","noce","220-230","нет","напольный",56,"любое, по желанию","пристенная","по центру",5.2,0.5,"установка по желанию","гидромассаж спины, гидромассаж боковой, гидромассаж ног",14,6,2,1,"есть, приобретаются отдельно","есть, приобретаются отдельно","нет, установка на каркас не предусмотрена","есть, приобретается отдельно","нет, приобретается отдельно",190,"нет","левая","установка по желанию","установка по желанию",null,"установка по желанию","установка по желанию",12,"системы гидромассажа","нет","ванн Riho Doppio",14,112,"массив ореха","массив лиственных деревьев","округлая","темное дерево","с дверками, с ящиками","нет","искусственный мрамор","керамический картридж","полимерная керамика","овальная","белый",1,"нет","нет",null,6,"распашная",1,"серый","акрил","рифленое","хром","алюминий","стекло","низкий","белый","нет, приобретается отдельно","да","для раковины","Cezares","Royal Palace","Италия","Royal Palace","\nВанна RIHO NEO 140 изготовлена из 100 % акрилового листа LUCITE, с добавлением антибактериального свойства MICROBAN.","Описание\nВанна RIHO NEO 140 изготовлена из 100 % акрилового листа LUCITE, с добавлением антибактериального свойства MICROBAN.",31840,"210172324_737.jpg","210172324_737-2.jpg","210172324_737-3.jpg","210172324_737-4.jpg","35545668_968-5.jpg","BA6500500000000","напольный унитаз-компакт","есть","нет","вертикальный (в пол), горизонтальный (в стену)","фарфор","да","дюропласт, дерево",45.5,69,84.5,40,"бытовая","поверх унитаза",42069,"снизу бачка","душевой слив (воронка-водоворот)","две кнопки (режим эконом)","механическая кнопка","овальная","нет","ретро","белый","белый, под дерево","есть, уже установлено","нет, установка не предусмотрена","встроенное сиденье","15 лет","Италия","для ванн RIHO Dopio, Modena, Geta, Daytona","подлокотники","бронза","noce","220-230","нет","напольный",56,"любое, по желанию","пристенная","по центру",5.2,0.5,"установка по желанию","гидромассаж спины, гидромассаж боковой, гидромассаж ног",14,6,2,1,"есть, приобретаются отдельно","есть, приобретаются отдельно","нет, установка на каркас не предусмотрена","есть, приобретается отдельно","нет, приобретается отдельно",190,"нет","левая","установка по желанию","установка по желанию",null,"установка по желанию","установка по желанию",12,"системы гидромассажа","нет","ванн Riho Doppio",14,112,"массив ореха","массив лиственных деревьев","округлая","темное дерево","с дверками, с ящиками","нет","искусственный мрамор","керамический картридж","полимерная керамика","овальная","белый",1,"нет"]
["Riho","Miami","Чехия / Нидерланды","Miami 180","\nВанна RIHO LYRA 170 изготовлена из 100 % акрилового листа LUCITE, с добавлением антибактериального свойства MICROBAN.","Описание\nВанна RIHO LYRA 170 изготовлена из 100 % акрилового листа LUCITE, с добавлением антибактериального свойства MICROBAN.",17900,"35545595_950.jpg","35545595_950-2.jpg","35545595_950-3.jpg","35545595_950-4.jpg","35555711_978-5.jpg","BA6900500000000","напольный унитаз-компакт","есть","нет","вертикальный (в пол)","акрил","нет","дерево",80,180,43,null,"бытовая","поверх унитаза",42069,null,"душевой слив (воронка-водоворот)","две кнопки (режим эконом)","механический","прямоугольная","нет","современный стиль","белый","белый, под дерево","установка по желанию","нет, установка не предусмотрена","встроенное сиденье","10 лет","Чехия, Нидерланды","для ванн Lyra 153, Lyra 140, Neo 140, Nora","подлокотники","бронза","патина, bianco patinato","220-230","нет","напольный",49,"любое, по желанию","пристенная","по центру",5.2,0.5,"установка по желанию","гидромассаж спины, гидромассаж боковой, гидромассаж ног",6,12,2,1,"есть, приобретаются отдельно","есть, приобретаются отдельно","нет, установка на каркас не предусмотрена","есть, приобретается отдельно","нет, приобретается отдельно",400,"нет","правая","установка по желанию","установка по желанию",null,"установка по желанию","установка по желанию",12,"системы гидромассажа","нет","ванн Riho Klassik",13,62.5,"массив ореха","массив лиственных деревьев","прямоугольная, округлая","белый","с дверками","нет","натуральный мрамор","керамический картридж","полимерная керамика","полукруглая","белый",1,"нет","нет",null,6,"распашная",1,"серый","акрил","прозрачное","хром","алюминий","стекло","низкий","белый","нет, приобретается отдельно","да","для раковины","Riho","Miami","Чехия / Нидерланды","Miami 180","\nВанна RIHO LYRA 170 изготовлена из 100 % акрилового листа LUCITE, с добавлением антибактериального свойства MICROBAN.","Описание\nВанна RIHO LYRA 170 изготовлена из 100 % акрилового листа LUCITE, с добавлением антибактериального свойства MICROBAN.",17900,"35545595_950.jpg","35545595_950-2.jpg","35545595_950-3.jpg","35545595_950-4.jpg","35555711_978-5.jpg","BA6900500000000","напольный унитаз-компакт","есть","нет","вертикальный (в пол)","акрил","нет","дерево",80,180,43,null,"бытовая","поверх унитаза",42069,null,"душевой слив (воронка-водоворот)","две кнопки (режим эконом)","механический","прямоугольная","нет","современный стиль","белый","белый, под дерево","установка по желанию","нет, установка не предусмотрена","встроенное сиденье","10 лет","Чехия, Нидерланды","для ванн Lyra 153, Lyra 140, Neo 140, Nora","подлокотники","бронза","патина, bianco patinato","220-230","нет","напольный",49,"любое, по желанию","пристенная","по центру",5.2,0.5,"установка по желанию","гидромассаж спины, гидромассаж боковой, гидромассаж ног",6,12,2,1,"есть, приобретаются отдельно","есть, приобретаются отдельно","нет, установка на каркас не предусмотрена","есть, приобретается отдельно","нет, приобретается отдельно",400,"нет","правая","установка по желанию","установка по желанию",null,"установка по желанию","установка по желанию",12,"системы гидромассажа","нет","ванн Riho Klassik",13,62.5,"массив ореха","массив лиственных деревьев","прямоугольная, округлая","белый","с дверками","нет","натуральный мрамор","керамический картридж","полимерная керамика","полукруглая","белый",1,"нет"]
["Riho","Neo","Чехия / Нидерланды","Neo 150","\nВанна RIHO LYRA 140 изготовлена из 100 % акрилового листа\nLUCITE, с добавлением антибактериального свойства MICROBAN.","Описание\nВанна RIHO LYRA 140 изготовлена из 100 % акрилового листа\nLUCITE, с добавлением антибактериального свойства MICROBAN.",30680,"63554683_961.jpg","63554683_961-2.jpg","63554683_961-3.jpg","35545671_967-4.jpg","35445567_1059-5.jpg","BA1200500000000",null,null,null,"вертикальный (в пол)","акрил","нет",null,150,150,49,null,"бытовая","поверх унитаза",null,null,null,"две кнопки (режим эконом)","механическая кнопка","четверть круга","да","современный стиль","белый",null,null,null,"встроенное сиденье","10 лет","Чехия, Нидерланды","для ванн  Yukon, Doppio, Dorado, Geta 160, 170","подлокотники","хром, кристалл","bianco laccato lucido","220-230","нет","напольный",60,"любое, по желанию","пристенная","стандартное",5.2,0.5,"установка по желанию","гидромассаж спины, гидромассаж боковой, гидромассаж ног",6,12,2,1,"есть, приобретаются отдельно","есть, приобретаются отдельно","нет, установка на каркас не предусмотрена","есть, приобретается отдельно","нет, приобретается отдельно",295,"нет","правая","установка по желанию","установка по желанию",null,"установка по желанию","установка по желанию",12,"системы гидромассажа","нет","ванн Riho Sydney",14,131,"массив ореха","массив лиственных деревьев","округлая","белый","с ящиками","нет",null,"керамический картридж","полимерная керамика","полукруглая","белый",1,"нет","нет",null,6,"раздвижная",2,"серый","акрил","рифленое","хром","алюминий","стекло","низкий","белый","нет, приобретается отдельно","да","для раковины, для раковины-чаши","Riho","Neo","Чехия / Нидерланды","Neo 150","\nВанна RIHO LYRA 140 изготовлена из 100 % акрилового листа\nLUCITE, с добавлением антибактериального свойства MICROBAN.","Описание\nВанна RIHO LYRA 140 изготовлена из 100 % акрилового листа\nLUCITE, с добавлением антибактериального свойства MICROBAN.",30680,"63554683_961.jpg","63554683_961-2.jpg","63554683_961-3.jpg","35545671_967-4.jpg","35445567_1059-5.jpg","BA1200500000000",null,null,null,"вертикальный (в пол)","акрил","нет",null,150,150,49,null,"бытовая","поверх унитаза",null,null,null,"две кнопки (режим эконом)","механическая кнопка","четверть круга","да","современный стиль","белый",null,null,null,"встроенное сиденье","10 лет","Чехия, Нидерланды","для ванн  Yukon, Doppio, Dorado, Geta 160, 170","подлокотники","хром, кристалл","bianco laccato lucido","220-230","нет","напольный",60,"любое, по желанию","пристенная","стандартное",5.2,0.5,"установка по желанию","гидромассаж спины, гидромассаж боковой, гидромассаж ног",6,12,2,1,"есть, приобретаются отдельно","есть, приобретаются отдельно","нет, установка на каркас не предусмотрена","есть, приобретается отдельно","нет, приобретается отдельно",295,"нет","правая","установка по желанию","установка по желанию",null,"установка по желанию","установка по желанию",12,"системы гидромассажа","нет","ванн Riho Sydney",14,131,"массив ореха","массив лиственных деревьев","округлая","белый","с ящиками","нет",null,"керамический картридж","полимерная керамика","полукруглая","белый",1,"нет"]
["Riho","Neo","Чехия / Нидерланды","Neo 140","\nВанна RIHO JULIA 190 изготовлена из 100 % акрилового листа LUCITE, с добавлением антибактериального свойства MICROBAN.","Описание\nВанна RIHO JULIA 190 изготовлена из 100 % акрилового листа LUCITE, с добавлением антибактериального свойства MICROBAN.",26200,"63554682_964.jpg","63554682_964-2.jpg","63554682_964-3.jpg","35545668_968-4.jpg","35445611_1064-5.jpg","BZ2200500000000",null,null,null,"вертикальный (в пол)","акрил","нет",null,140,140,47.5,null,"бытовая",null,null,null,null,null,null,"четверть круга","да","современный стиль","белый",null,null,null,"встроенное сиденье","10 лет","Чехия, Нидерланды","с поверхностной обработкой Riho Shield","подлокотники","хром","bianco perla frassinato","220-230","нет","напольный",51,"любое, по желанию","пристенная","стандартное",5.2,0.5,"установка по желанию","гидромассаж спины, гидромассаж боковой, гидромассаж ног",6,12,2,1,"есть, приобретаются отдельно","есть, приобретаются отдельно","нет, установка на каркас не предусмотрена","есть, приобретается отдельно","нет, приобретается отдельно",180,"нет","правая","установка по желанию","установка по желанию",null,"установка по желанию","установка по желанию",12,"системы гидромассажа","нет","ванн Riho Future",13,68.5,"массив ореха","массив лиственных деревьев","округлая","белый","с дверками","нет",null,"керамический картридж","стекло","полукруглая","черный",1,null,null,null,6,"раздвижная",1,"серый","акрил","прозрачное","хром","алюминий","стекло","низкий","белый","нет, приобретается отдельно","да","для раковины","Riho","Neo","Чехия / Нидерланды","Neo 140","\nВанна RIHO JULIA 190 изготовлена из 100 % акрилового листа LUCITE, с добавлением антибактериального свойства MICROBAN.","Описание\nВанна RIHO JULIA 190 изготовлена из 100 % акрилового листа LUCITE, с добавлением антибактериального свойства MICROBAN.",26200,"63554682_964.jpg","63554682_964-2.jpg","63554682_964-3.jpg","35545668_968-4.jpg","35445611_1064-5.jpg","BZ2200500000000",null,null,null,"вертикальный (в пол)","акрил","нет",null,140,140,47.5,null,"бытовая",null,null,null,null,null,null,"четверть круга","да","современный стиль","белый",null,null,null,"встроенное сиденье","10 лет","Чехия, Нидерланды","с поверхностной обработкой Riho Shield","подлокотники","хром","bianco perla frassinato","220-230","нет","напольный",51,"любое, по желанию","пристенная","стандартное",5.2,0.5,"установка по желанию","гидромассаж спины, гидромассаж боковой, гидромассаж ног",6,12,2,1,"есть, приобретаются отдельно","есть, приобретаются отдельно","нет, установка на каркас не предусмотрена","есть, приобретается отдельно","нет, приобретается отдельно",180,"нет","правая","установка по желанию","установка по желанию",null,"установка по желанию","установка по желанию",12,"системы гидромассажа","нет","ванн Riho Future",13,68.5,"массив ореха","массив лиственных деревьев","округлая","белый","с дверками","нет",null,"керамический картридж","стекло","полукруглая","черный",1]
["Riho","Lyra","Чехия / Нидерланды","Lyra 170","\nВанна RIHO LUSSO PLUS 170x80 изготовлена из 100 % акрилового листа LUCITE, с добавлением антибактериального свойства MICROBAN.","Описание\nВанна RIHO LUSSO PLUS 170x80 изготовлена из 100 % акрилового листа LUCITE, с добавлением антибактериального свойства MICROBAN.",27800,"35545671_967.jpg","35545671_967-2.jpg","35545671_967-3.jpg","35555711_978-4.jpg","35445568_1088-5.jpg","BA7200500000000",null,null,null,"вертикальный (в пол)","акрил","нет",null,110,170,46.5,null,"бытовая",null,null,null,null,null,null,"асимметричная","да","современный стиль","белый",null,null,null,"встроенное сиденье","10 лет","Чехия, Нидерланды","установка универсальная","подлокотники","хром","nero laccato","220-230","нет","подвесной",45,"любое, по желанию","пристенная","по центру",5.2,0.5,"установка по желанию","гидромассаж спины, гидромассаж боковой, гидромассаж ног",6,12,2,1,"есть, приобретаются отдельно","есть, приобретаются отдельно","нет, установка на каркас не предусмотрена","есть, приобретается отдельно","нет, приобретается отдельно",320,"нет","левая","установка по желанию","установка по желанию",null,"установка по желанию","установка по желанию",12,"системы гидромассажа","нет","ванн Riho Miami",13,88,"массив ореха","массив лиственных деревьев","прямоугольная","черный","с ящиками","нет",null,"керамическая кран-букса","фарфор","полукруглая","белый",1,null,null,null,8,"распашная",1,"серый","акрил","прозрачное","хром","алюминий","стекло","низкий","белый","нет, приобретается отдельно","да","на борт ванны","Riho","Lyra","Чехия / Нидерланды","Lyra 170","\nВанна RIHO LUSSO PLUS 170x80 изготовлена из 100 % акрилового листа LUCITE, с добавлением антибактериального свойства MICROBAN.","Описание\nВанна RIHO LUSSO PLUS 170x80 изготовлена из 100 % акрилового листа LUCITE, с добавлением антибактериального свойства MICROBAN.",27800,"35545671_967.jpg","35545671_967-2.jpg","35545671_967-3.jpg","35555711_978-4.jpg","35445568_1088-5.jpg","BA7200500000000",null,null,null,"вертикальный (в пол)","акрил","нет",null,110,170,46.5,null,"бытовая",null,null,null,null,null,null,"асимметричная","да","современный стиль","белый",null,null,null,"встроенное сиденье","10 лет","Чехия, Нидерланды","установка универсальная","подлокотники","хром","nero laccato","220-230","нет","подвесной",45,"любое, по желанию","пристенная","по центру",5.2,0.5,"установка по желанию","гидромассаж спины, гидромассаж боковой, гидромассаж ног",6,12,2,1,"есть, приобретаются отдельно","есть, приобретаются отдельно","нет, установка на каркас не предусмотрена","есть, приобретается отдельно","нет, приобретается отдельно",320,"нет","левая","установка по желанию","установка по желанию",null,"установка по желанию","установка по желанию",12,"системы гидромассажа","нет","ванн Riho Miami",13,88,"массив ореха","массив лиственных деревьев","прямоугольная","черный","с ящиками","нет",null,"керамическая кран-букса","фарфор","полукруглая","белый",1]
["Riho","Lyra","Чехия / Нидерланды","Lyra 140","\nВанна RIHO KLASSIK 150 изготовлена из 100 % акрилового листа LUCITE, с добавлением антибактериального свойства MICROBAN.","Описание\nВанна RIHO KLASSIK 150 изготовлена из 100 % акрилового листа LUCITE, с добавлением антибактериального свойства MICROBAN.",24930,"35545668_968.jpg","35545668_968-2.jpg","35545668_968-3.jpg","35445590_1020-4.jpg","35455677_1133-5.jpg","BC0700500000000",null,null,null,"вертикальный (в пол)","акрил","нет",null,90,140,45,null,"бытовая",null,null,null,null,null,null,"асимметричная","да","современный стиль","белый",null,null,null,"встроенное сиденье","10 лет","Чехия, Нидерланды","установка универсальная","подлокотники","бронза","bianco laccato","220-230","нет","напольный",56,"любое, по желанию","пристенная","по центру",5.2,0.5,"установка по желанию","гидромассаж спины, гидромассаж боковой, гидромассаж ног",6,12,2,1,"есть, приобретаются отдельно","есть, приобретаются отдельно","нет, установка на каркас не предусмотрена","есть, приобретается отдельно","нет, приобретается отдельно",220,"нет","левая","установка по желанию","установка по желанию",null,"установка по желанию","установка по желанию",12,"системы гидромассажа","нет","ванн Riho Julia",13,112,"массив ореха","массив лиственных деревьев","округлая","белый","с ящиками","нет",null,"керамическая кран-букса","фарфор","полукруглая","белый",1,null,null,null,6,"раздвижная",1,"серый","акрил","рифленое","хром","алюминий","стекло","низкий","белый","нет, приобретается отдельно","да","для ванны с душем, набор: смеситель и душевой гарнитур","Riho","Lyra","Чехия / Нидерланды","Lyra 140","\nВанна RIHO KLASSIK 150 изготовлена из 100 % акрилового листа LUCITE, с добавлением антибактериального свойства MICROBAN.","Описание\nВанна RIHO KLASSIK 150 изготовлена из 100 % акрилового листа LUCITE, с добавлением антибактериального свойства MICROBAN.",24930,"35545668_968.jpg","35545668_968-2.jpg","35545668_968-3.jpg","35445590_1020-4.jpg","35455677_1133-5.jpg","BC0700500000000",null,null,null,"вертикальный (в пол)","акрил","нет",null,90,140,45,null,"бытовая",null,null,null,null,null,null,"асимметричная","да","современный стиль","белый",null,null,null,"встроенное сиденье","10 лет","Чехия, Нидерланды","установка универсальная","подлокотники","бронза","bianco laccato","220-230","нет","напольный",56,"любое, по желанию","пристенная","по центру",5.2,0.5,"установка по желанию","гидромассаж спины, гидромассаж боковой, гидромассаж ног",6,12,2,1,"есть, приобретаются отдельно","есть, приобретаются отдельно","нет, установка на каркас не предусмотрена","есть, приобретается отдельно","нет, приобретается отдельно",220,"нет","левая","установка по желанию","установка по желанию",null,"установка по желанию","установка по желанию",12,"системы гидромассажа","нет","ванн Riho Julia",13,112,"массив ореха","массив лиственных деревьев","округлая","белый","с ящиками","нет",null,"керамическая кран-букса","фарфор","полукруглая","белый",1]
["Riho","Julia","Чехия / Нидерланды","Julia 190","\nВанна RIHO JULIA 180 изготовлена из 100 % акрилового листа LUCITE, с добавлением антибактериального свойства MICROBAN.","Описание\nВанна RIHO JULIA 180 изготовлена из 100 % акрилового листа LUCITE, с добавлением антибактериального свойства MICROBAN.",33870,"35545685_976.jpg","35545685_976-2.jpg","35545685_976-3.jpg","35454667_1052-4.jpg","35445558_1185-5.jpg","BA0500500000000",null,null,null,"вертикальный (в пол)","акрил","нет",null,90,190,53,null,"бытовая",null,null,null,null,null,null,"прямоугольная","нет","современный стиль","белый",null,null,null,"встроенное сиденье","10 лет","Чехия, Нидерланды","противокальцевая обработка стекла (Idrorepellente Vetro)","подлокотники","хром, кристалл","tortora frassinato","220-230","нет","подвесной",54,"любое, по желанию","пристенная","стандартное",5.2,0.5,"установка по желанию","гидромассаж спины, гидромассаж боковой, гидромассаж ног",6,12,2,1,"есть, приобретаются отдельно","есть, приобретаются отдельно","нет, установка на каркас не предусмотрена","есть, приобретается отдельно","нет, приобретается отдельно",150,"нет","левая","установка по желанию","установка по желанию",null,"установка по желанию","установка по желанию",12,"системы гидромассажа","нет","ванн Riho Lima",21,103,"массив ореха","массив лиственных деревьев","прямоугольная","светлое дерево","с ящиками","нет",null,"керамическая кран-букса","фарфор","полукруглая","белый",1,null,null,null,6,"раздвижная",1,"серый","акрил","прозрачное","хром","алюминий","стекло","низкий","белый","нет, приобретается отдельно","да","для раковины","Riho","Julia","Чехия / Нидерланды","Julia 190","\nВанна RIHO JULIA 180 изготовлена из 100 % акрилового листа LUCITE, с добавлением антибактериального свойства MICROBAN.","Описание\nВанна RIHO JULIA 180 изготовлена из 100 % акрилового листа LUCITE, с добавлением антибактериального свойства MICROBAN.",33870,"35545685_976.jpg","35545685_976-2.jpg","35545685_976-3.jpg","35454667_1052-4.jpg","35445558_1185-5.jpg","BA0500500000000",null,null,null,"вертикальный (в пол)","акрил","нет",null,90,190,53,null,"бытовая",null,null,null,null,null,null,"прямоугольная","нет","современный стиль","белый",null,null,null,"встроенное сиденье","10 лет","Чехия, Нидерланды","противокальцевая обработка стекла (Idrorepellente Vetro)","подлокотники","хром, кристалл","tortora frassinato","220-230","нет","подвесной",54,"любое, по желанию","пристенная","стандартное",5.2,0.5,"установка по желанию","гидромассаж спины, гидромассаж боковой, гидромассаж ног",6,12,2,1,"есть, приобретаются отдельно","есть, приобретаются отдельно","нет, установка на каркас не предусмотрена","есть, приобретается отдельно","нет, приобретается отдельно",150,"нет","левая","установка по желанию","установка по желанию",null,"установка по желанию","установка по желанию",12,"системы гидромассажа","нет","ванн Riho Lima",21,103,"массив ореха","массив лиственных деревьев","прямоугольная","светлое дерево","с ящиками","нет",null,"керамическая кран-букса","фарфор","полукруглая","белый",1]

{"sheet":"Пример Работает","index":1,"n_rows":20,"n_cols":10,"rows_kept":20,"cut":false,"hidden":false,"merged":[]}
["Материал|","Ширина, см|","Длина, см|","Высота, см|","Высота чаши|","Область применения|",null,null,"Нужно"]
["фарфор",36.5,55.5,40.5,42.5,"бытовая",null,null,{"$f":"A$1&A2&CHAR(10)&B$1&B2&CHAR(10)&C$1&C2&CHAR(10)&D$1&D2&CHAR(10)&E$1&E2&CHAR(10)&F$1&F2","v":"Материал|фарфор\nШирина, см|36,5\nДлина, см|55,5\nВысота, см|40,5\nВысота чаши|42,5\nОбласть применения|бытовая"},{"$f":"cc(A1:F1,A2:F2)","v":"Материал|фарфор\nШирина, см|36.5\nДлина, см|55.5\nВысота, см|40.5\nВысота чаши|42.5\nОбласть применения|бытовая"}]
["фарфор",38,64,82,45,"бытовая",null,null,{"$f":"A$1&A3&CHAR(10)&B$1&B3&CHAR(10)&C$1&C3&CHAR(10)&D$1&D3&CHAR(10)&E$1&E3&CHAR(10)&F$1&F3","v":"Материал|фарфор\nШирина, см|38\nДлина, см|64\nВысота, см|82\nВысота чаши|45\nОбласть применения|бытовая"}]
["фарфор",36,67,83,40,"бытовая",null,null,"Материал|фарфор\nШирина, см|36\nДлина, см|67\nВысота, см|83\nВысота чаши|40\nОбласть применения|бытовая"]
["фарфор",43.5,74.5,84.5,40,"бытовая",null,null,"Материал|фарфор\nШирина, см|43,5\nДлина, см|74,5\nВысота, см|84,5\nВысота чаши|40\nОбласть применения|бытовая"]
["фарфор",45.5,69,84.5,40,"бытовая",null,null,"Материал|фарфор\nШирина, см|45,5\nДлина, см|69\nВысота, см|84,5\nВысота чаши|40\nОбласть применения|бытовая"]
["акрил",80,180,43,null,"бытовая",null,null,"Материал|акрил\nШирина, см|80\nДлина, см|180\nВысота, см|43\nВысота чаши|\nОбласть применения|бытовая"]
["акрил",150,150,49,null,"бытовая",null,null,"Материал|акрил\nШирина, см|150\nДлина, см|150\nВысота, см|49\nВысота чаши|\nОбласть применения|бытовая"]
["акрил",140,140,47.5,null,"бытовая",null,null,"Материал|акрил\nШирина, см|140\nДлина, см|140\nВысота, см|47,5\nВысота чаши|\nОбласть применения|бытовая"]
["акрил",110,170,46.5,null,"бытовая",null,null,"Материал|акрил\nШирина, см|110\nДлина, см|170\nВысота, см|46,5\nВысота чаши|\nОбласть применения|бытовая"]
["акрил",90,140,45,null,"бытовая",null,null,"Материал|акрил\nШирина, см|90\nДлина, см|140\nВысота, см|45\nВысота чаши|\nОбласть применения|бытовая"]
["акрил",90,190,53,null,"бытовая",null,null,"Материал|акрил\nШирина, см|90\nДлина, см|190\nВысота, см|53\nВысота чаши|\nОбласть применения|бытовая"]
["акрил",80,170,48,null,"бытовая",null,null,"Материал|акрил\nШирина, см|80\nДлина, см|170\nВысота, см|48\nВысота чаши|\nОбласть применения|бытовая"]
["акрил",70,150,43,null,"бытовая",null,null,"Материал|акрил\nШирина, см|70\nДлина, см|150\nВысота, см|43\nВысота чаши|\nОбласть применения|бытовая"]
["акрил",80,180,52,null,"бытовая",null,null,"Материал|акрил\nШирина, см|80\nДлина, см|180\nВысота, см|52\nВысота чаши|\nОбласть применения|бытовая"]
["акрил",80,170,46,null,"бытовая",null,null,"Материал|акрил\nШирина, см|80\nДлина, см|170\nВысота, см|46\nВысота чаши|\nОбласть применения|бытовая"]
["акрил",70,140,47,null,"бытовая",null,null,"Материал|акрил\nШирина, см|70\nДлина, см|140\nВысота, см|47\nВысота чаши|\nОбласть применения|бытовая"]
["акрил",120,180,51,null,"бытовая",null,null,"Материал|акрил\nШирина, см|120\nДлина, см|180\nВысота, см|51\nВысота чаши|\nОбласть применения|бытовая"]
["акрил",70,170,48.5,null,"бытовая",null,null,"Материал|акрил\nШирина, см|70\nДлина, см|170\nВысота, см|48,5\nВысота чаши|\nОбласть применения|бытовая"]
["акрил",80,170,53,null,"бытовая",null,null,"Материал|акрил\nШирина, см|80\nДлина, см|170\nВысота, см|53\nВысота чаши|\nОбласть применения|бытовая"]